bitfinex/quotes_ETHUSD_20260306
["timestamp","ask_amount","ask_price","bid_price","bid_amount"]
[1772839784184,2.36775782,1986.2,1986.1,0.001]
[1772839786688,1.1090729,1986.1,1986.0,0.0011]
[1772839788790,2.3678212,1986.1,1986.0,0.0011]
[1772839790088,0.002,1986.4,1986.0,0.05002244]
[1772839790387,2.36965935,1986.4,1986.0,0.05002244]
[1772839796391,2.36965935,1986.4,1986.1,0.0011]
[1772839796688,0.001,1986.3,1986.1,0.053552]
[1772839798389,0.002,1986.4,1986.1,0.053552]
[1772839798595,0.002,1986.4,1986.3,0.05229854]
[1772839798793,0.001,1986.6,1986.3,0.05229854]
[1772839798966,0.002,1986.8,1986.4,0.05229854]
[1772839800376,2.36900806,1986.8,1986.2,1.25868492]
[1772839800577,1.10867748,1986.7,1986.3,0.0531231]
[1772839800982,1.10867748,1986.7,1986.2,1.25868492]
[1772839801185,1.10867748,1986.7,1986.1,1.25983801]
[1772839801498,1.10867748,1986.7,1986.1,1.31296111]
[1772839804608,1.12385356,1986.6,1986.2,0.05513608]
[1772839807107,1.12385356,1986.6,1986.2,1.31377663]
[1772839808021,1.12385356,1986.6,1986.2,1.31487663]
[1772839808307,1.12485356,1986.6,1986.2,1.31487663]
[1772839818015,1.12485356,1986.6,1986.2,0.0011]
[1772839820202,1.12385356,1986.4,1986.2,0.0011]
[1772839822915,1.12385356,1986.3,1986.2,0.0011]
[1772839825030,1.12385356,1986.3,1986.1,1.25984617]
[1772839825031,1.12385356,1986.3,1986.1,0.0011]
[1772839825399,1.12385356,1986.3,1986.1,1.25984257]
[1772839825820,1.12385356,1986.4,1986.1,1.25984257]
[1772839827709,1.12385356,1986.4,1986.1,1.28769399]
[1772839831023,2.3832882,1986.6,1986.2,0.02320985]
[1772839831220,2.3832882,1986.6,1986.2,0.02430985]
[1772839832730,1.11838155,1986.5,1986.2,0.0011]
[1772839833704,1.11838155,1986.5,1986.2,1.25978109]
[1772839834632,1.10692995,1986.5,1986.2,1.25978109]
[1772839837725,1.10692995,1986.5,1986.2,0.0011]
[1772839842537,1.10692995,1986.5,1986.3,0.0011]
[1772839842838,0.001,1986.4,1986.3,0.0011]
[1772839844208,1.11938155,1986.4,1986.3,0.0011]
[1772839846047,1.11938155,1986.4,1986.1,1.25982807]
[1772839846762,1.11938155,1986.4,1986.1,0.0011]
[1772839848544,1.11838155,1986.3,1986.1,0.0011]
[1772839851554,1.11938155,1986.4,1986.1,1.2598483]
[1772839854749,1.11938155,1986.4,1986.2,0.0011]
[1772839855051,0.001,1986.3,1986.2,0.0011]
[1772839865240,1.10340168,1986.3,1986.2,0.0011]
[1772839867064,0.001,1986.3,1986.2,0.0011]
[1772839885683,1.10340168,1986.3,1986.2,0.0011]
[1772839897307,1.10340168,1986.3,1986.0,0.0011]
[1772839899536,1.10185168,1986.2,1986.0,0.0011]
[1772839902031,1.25873657,1986.2,1986.0,0.0011]
[1772839902214,1.10185168,1986.1,1986.0,0.0011]
[1772839907752,1.10130168,1986.0,1985.8,0.0011]
[1772839914961,1.10130168,1986.0,1985.9,0.0011]
[1772839916174,0.001,1986.2,1985.9,1.0092305]
[1772839916739,1.25968734,1986.2,1985.9,1.0092305]
[1772839917745,2.24169494,1986.2,1985.9,1.0092305]
[1772839917942,0.9830076,1986.2,1985.9,0.0011]
[1772839918146,0.9820076,1986.1,1985.9,0.0011]
[1772839918859,0.9820076,1986.0,1985.9,0.0011]
[1772839924697,1.06298297,1985.9,1985.7,0.0011]
[1772839925194,1.06298297,1985.9,1985.6,0.0011]
[1772839926381,1.06298297,1985.9,1985.8,0.0011]
[1772839926680,1.06398297,1985.9,1985.8,0.0011]
[1772839927783,2.32285803,1985.9,1985.8,0.0011]
[1772839929186,1.06398297,1985.9,1985.8,0.0011]
[1772839940493,1.25972604,1986.2,1985.8,0.0011]
[1772839940699,1.25972604,1986.2,1985.8,0.99214513]
[1772839940700,1.06298297,1986.1,1985.8,0.99214513]
[1772839949436,1.06298297,1986.1,1985.8,0.99214513]
[1772839950036,0.001,1986.0,1985.8,0.99214513]
[1772839961551,0.001,1986.0,1985.9,0.0011]
[1772839969862,0.001,1986.0,1985.8,0.0011]
[1772839969863,1.05227824,1986.0,1985.8,0.0011]
[1772839972577,1.25982787,1986.0,1985.8,0.0011]
[1772839972761,1.05127824,1985.9,1985.8,0.0011]
[1772839973575,1.05227824,1985.9,1985.8,0.0011]
[1772839980877,0.001,1985.9,1985.8,0.0011]
[1772839981604,1.25987506,1985.9,1985.6,0.0011]
[1772839981804,1.01095108,1985.8,1985.5,1.60047992]
[1772839982815,1.01263832,1985.7,1985.5,1.60047992]
[1772839983111,1.01263832,1985.6,1985.5,0.0011]
[1772839985610,2.271767,1985.5,1985.2,0.0011]
[1772839989619,1.01263832,1985.4,1985.2,0.0011]
[1772839992326,1.25915276,1985.5,1985.2,0.98147066]
[1772839994020,2.27173242,1985.6,1985.2,0.98147066]
[1772839994227,1.01263832,1985.6,1985.3,0.98037066]
[1772839994400,2.27170359,1985.6,1985.3,0.98037066]
[1772839997208,1.01263832,1985.6,1985.3,2.23962162]
[1772839997409,1.01263832,1985.5,1985.2,1.26037869]
[1772839998240,1.01263832,1985.5,1985.4,0.0011]
[1772839998424,1.01363832,1985.5,1985.4,0.0011]
[1772839999553,2.272767,1985.5,1985.4,0.0011]
[1772840001141,1.01363832,1985.5,1985.4,0.0011]
[1772840001752,2.272767,1985.5,1985.4,0.0011]
[1772840001950,1.01363832,1985.5,1985.4,0.0011]
[1772840002252,2.272767,1985.5,1985.4,0.0011]
[1772840003556,1.01363832,1985.5,1985.4,0.0011]
[1772840008741,1.01263832,1985.6,1985.4,0.0011]
[1772840010660,2.27170358,1985.6,1985.5,0.0011]
[1772840012481,2.27170358,1985.6,1985.4,0.0011]
[1772840013382,1.01610105,1985.5,1985.4,0.0011]
[1772840018265,2.27516631,1985.6,1985.4,0.0011]
[1772840020770,1.25906526,1985.6,1985.4,1.05199232]
[1772840022495,1.25906526,1985.6,1985.5,0.0011]
[1772840022696,0.001,1985.5,1985.4,1.05199232]
[1772840023203,1.01710105,1985.5,1985.3,0.0011]
[1772840024871,2.27624066,1985.5,1985.3,0.0011]
[1772840033401,1.01610105,1985.4,1985.1,0.0011]
[1772840033607,1.01610105,1985.3,1985.1,0.0011]
[1772840035700,2.27542001,1985.2,1985.1,0.0011]
[1772840036496,1.01610105,1985.2,1985.1,0.0011]
[1772840040923,2.27542001,1985.2,1985.1,0.0011]
[1772840041327,1.01610105,1985.2,1985.1,0.0011]
[1772840042029,1.01610105,1985.2,1985.0,0.0011]
[1772840042428,1.05140279,1985.1,1985.0,0.0011]
[1772840042627,1.05140279,1984.9,1984.7,0.0011]
[1772840042999,2.31097554,1984.8,1984.7,0.0011]
[1772840043331,1.05140279,1984.7,1984.2,1.08194328]
[1772840043527,1.05140279,1984.7,1984.5,0.0011]
[1772840043734,1.00140279,1984.7,1984.5,0.0011]
[1772840044712,1.00140279,1984.7,1984.2,1.08194328]
[1772840044927,1.00140279,1984.7,1984.3,0.0011]
[1772840045428,2.31110247,1984.6,1984.3,0.0011]
[1772840046022,2.31110247,1984.6,1984.2,1.08194328]
[1772840046329,1.05140279,1984.5,1984.3,0.0022]
[1772840047433,1.25982664,1984.4,1984.3,0.0022]
[1772840047638,2.31122943,1984.4,1984.3,0.0022]
[1772840048311,2.31122943,1984.4,1984.3,0.0011]
[1772840048947,2.31122943,1984.4,1984.2,0.0011]
[1772840049259,2.31122943,1984.4,1984.3,0.0011]
[1772840049440,2.31122943,1984.4,1984.2,0.0011]
[1772840049844,1.05140279,1984.3,1984.0,1.10314914]
[1772840050027,1.25982664,1984.4,1984.1,1.10204914]
[1772840050531,2.31122943,1984.4,1984.1,1.10204914]
[1772840052066,2.31122943,1984.4,1984.0,1.10314914]
[1772840052856,1.25982664,1984.4,1984.0,1.10314914]
[1772840053061,2.31122943,1984.4,1984.0,1.10314914]
[1772840058787,2.31122943,1984.4,1984.1,0.0011]
[1772840059876,1.25982664,1984.4,1984.1,0.0011]
[1772840060577,1.05140279,1984.3,1984.0,0.0011]
[1772840060957,1.05140279,1984.3,1983.8,1.10314914]
[1772840061153,1.05140279,1984.1,1983.8,0.0011]
[1772840063688,2.31148343,1984.0,1983.8,0.0011]
[1772840064183,2.31148343,1984.0,1983.7,1.05314914]
[1772840065870,1.25993951,1984.3,1983.8,1.10204914]
[1772840066286,2.3113423,1984.3,1983.8,1.10204914]
[1772840067966,2.3113423,1984.3,1983.9,1.10204914]
[1772840070393,1.05140279,1984.3,1983.9,1.10204914]
[1772840070560,1.05140279,1984.4,1984.1,1.10204914]
[1772840071199,0.001,1984.3,1984.1,1.10204914]
[1772840074077,0.001,1984.3,1984.2,1.07547637]
[1772840075294,0.001,1984.3,1984.2,2.33543]
[1772840079624,0.001,1984.6,1984.3,1.07547637]
[1772840081704,0.001,1984.6,1984.4,2.33530301]
[1772840083221,0.001,1984.5,1984.4,2.33530301]
[1772840085828,0.91735144,1984.9,1984.5,1.07547637]
[1772840086454,2.0123983,1984.9,1984.5,1.07547637]
[1772840088031,0.91735144,1984.9,1984.6,1.25969968]
[1772840088236,0.91735144,1984.9,1984.7,1.07547637]
[1772840090529,0.91735144,1984.9,1984.7,2.33506138]
[1772840091160,2.0123983,1984.9,1984.6,2.33517605]
[1772840092130,2.0123983,1984.9,1984.6,1.07547637]
[1772840093265,2.0123983,1984.9,1984.7,1.25963621]
[1772840094379,2.0123983,1984.9,1984.6,2.33514115]
[1772840095274,2.0123983,1984.9,1984.7,0.0011]
[1772840095461,0.001,1984.8,1984.7,0.0011]
[1772840095980,0.001,1985.4,1984.8,1.07547637]
[1772840095981,1.09504686,1985.3,1984.8,1.07547637]
[1772840096845,1.09504686,1985.3,1984.7,0.0011]
[1772840097314,1.12176107,1985.4,1984.8,1.08634503]
[1772840097584,1.12176107,1985.4,1985.0,1.08634503]
[1772840097751,1.12076107,1985.3,1985.0,1.08634503]
[1772840098254,1.12076107,1985.3,1984.8,2.3458743]
[1772840100593,1.12076107,1985.3,1984.9,1.08634503]
[1772840101104,2.38002107,1985.3,1984.9,1.08634503]
[1772840101308,1.12076107,1985.2,1984.7,1.08744503]
[1772840103306,1.06996362,1985.0,1984.7,0.0011]
[1772840105409,1.06996362,1984.8,1984.7,0.0011]
[1772840105624,1.06996362,1984.8,1984.5,0.0011]
[1772840107512,2.32953712,1984.8,1984.5,0.0011]
[1772840107815,2.32953712,1984.8,1984.7,0.0011]
[1772840110199,1.06996362,1984.8,1984.7,0.0011]
[1772840115542,2.32953637,1984.8,1984.7,0.0011]
[1772840117452,1.2602314,1985.4,1984.8,1.0352908]
[1772840117650,2.33019502,1985.4,1984.8,1.0352908]
[1772840117855,1.06996362,1985.3,1984.8,1.0352908]
[1772840118153,1.06996362,1985.3,1984.7,0.0011]
[1772840119961,1.06996362,1985.1,1984.8,0.0011]
[1772840120141,1.07096362,1984.9,1984.8,0.0011]
[1772840122843,2.33047291,1984.9,1984.8,0.0011]
[1772840127384,1.06996362,1984.8,1984.5,0.0011]
[1772840129471,1.1262432,1984.6,1984.1,3.82762751]
[1772840129837,1.1262432,1984.6,1984.1,2.56765965]
[1772840130038,1.1262432,1984.6,1984.1,3.82767446]
[1772840131789,2.38599355,1984.6,1984.1,3.82767446]
[1772840132162,2.38599355,1984.6,1984.5,0.0011]
[1772840134193,2.38599355,1984.6,1984.3,0.0011]
[1772840134194,1.1262432,1984.5,1984.3,0.0011]
[1772840135497,1.1262432,1984.5,1983.9,0.0011]
[1772840136800,2.38606984,1984.4,1983.9,0.0011]
[1772840143919,2.38606984,1984.4,1984.0,0.0011]
[1772840144109,2.38706984,1984.4,1984.0,0.0011]
[1772840145812,1.1262432,1984.3,1983.8,0.0011]
[1772840146012,1.1262432,1984.1,1983.8,0.0011]
[1772840150019,2.38632384,1984.0,1983.8,0.0011]
[1772840152427,1.1262432,1983.9,1983.8,0.0011]
[1772840154112,2.38632384,1984.0,1983.8,0.0011]
[1772840155821,2.38632384,1984.0,1983.9,0.0011]
[1772840160544,5.04032258,1984.1,1983.9,0.0011]
[1772840160545,1.1262432,1984.1,1983.9,0.0011]
[1772840162761,2.38632384,1984.0,1983.9,0.0011]
[1772840190484,1.26008064,1984.0,1983.7,0.0011]
[1772840190690,1.1262432,1983.8,1983.5,0.0199672]
[1772840190982,1.1262432,1983.8,1982.8,3.8683125]
[1772840191895,1.1262432,1983.8,1983.7,0.0011]
[1772840192078,1.1262432,1983.8,1982.8,3.8683125]
[1772840193080,1.1262432,1983.6,1982.8,3.8683125]
[1772840195289,2.38664148,1983.5,1982.8,3.8683125]
[1772840195992,1.1262432,1983.2,1982.2,5.0446451]
[1772840197671,2.38689571,1983.1,1982.2,5.0446451]
[1772840197867,1.26065251,1983.1,1982.2,5.0446451]
[1772840198094,1.1262432,1983.0,1982.2,5.0446451]
[1772840198878,1.1262432,1983.0,1982.1,2.51962436]
[1772840199082,1.1262432,1983.0,1982.1,3.78087301]
[1772840199787,1.1262432,1982.5,1981.7,1.6391476]
[1772840201012,2.81877966,1982.9,1981.7,1.6391476]
[1772840201179,1.1262432,1982.8,1981.8,1.519]
[1772840201914,2.38715004,1982.7,1981.9,1.26141581]
[1772840203316,2.38715004,1982.7,1982.3,0.0011]
[1772840204410,3.94503408,1982.9,1982.3,0.0011]
[1772840204583,3.94502642,1982.9,1982.3,0.0011]
[1772840204912,2.6842432,1982.9,1982.3,0.0011]
[1772840205491,3.9450269,1982.9,1982.3,0.0011]
[1772840207720,1.1262432,1982.9,1982.3,0.0011]
[1772840207917,1.1262432,1983.3,1982.3,0.0011]
[1772840209905,1.26058794,1983.3,1982.3,0.0011]
[1772840210104,1.1262432,1983.2,1982.3,0.0011]
[1772840211599,1.1262432,1983.4,1982.3,0.0011]
[1772840213633,1.1262432,1983.2,1982.3,0.0011]
[1772840215505,1.1262432,1983.2,1982.4,0.0011]
[1772840215705,1.1262432,1983.0,1982.4,0.0011]
[1772840220923,1.1262432,1982.9,1982.4,0.0011]
[1772840221746,1.1262432,1983.1,1982.4,0.0011]
[1772840222336,1.1262432,1983.3,1982.4,1.4871]
[1772840223562,1.1262432,1983.3,1982.5,1.26103404]
[1772840224563,1.1262432,1983.2,1982.5,1.26103404]
[1772840225764,1.1262432,1983.1,1982.5,1.26103404]
[1772840228445,1.1262432,1983.1,1982.5,1.26213404]
[1772840229770,1.1262432,1983.0,1982.5,1.26213404]
[1772840230539,1.1262432,1982.9,1982.5,1.26213404]
[1772840231260,1.1262432,1982.9,1982.5,0.0011]
[1772840233972,1.26084325,1982.8,1982.5,0.0011]
[1772840234140,1.1262432,1982.7,1982.5,0.0011]
[1772840235171,1.1262432,1982.7,1982.4,0.0011]
[1772840236674,1.1256932,1982.5,1982.4,0.0011]
[1772840239094,2.38672724,1982.5,1982.4,0.0011]
[1772840242271,1.1256932,1982.5,1982.4,0.0011]
[1772840242488,1.1256932,1982.6,1982.4,0.0011]
[1772840244370,2.38670442,1982.6,1982.4,0.0011]
[1772840246004,1.1256932,1982.6,1982.4,0.0011]
[1772840252425,1.1256932,1982.6,1982.3,0.0011]
[1772840252628,2.38666364,1982.6,1982.5,0.0011]
[1772840252929,1.1256932,1982.5,1982.3,0.0011]
[1772840254905,1.1256932,1982.3,1982.2,0.0011]
[1772840255427,1.1256932,1982.4,1982.2,0.0011]
[1772840256927,2.38684786,1982.4,1982.2,0.0011]
[1772840257129,1.1256932,1982.3,1982.2,0.0011]
[1772840257701,1.1256932,1982.4,1982.2,0.0011]
[1772840259450,2.38630447,1982.3,1981.8,1.93721944]
[1772840260945,1.1251432,1982.3,1981.8,1.93721944]
[1772840262043,2.38716261,1982.6,1981.8,1.93721944]
[1772840262419,1.1251432,1982.5,1981.8,1.93721944]
[1772840264047,2.38619957,1982.5,1981.8,1.93721944]
[1772840264431,2.38619957,1982.5,1981.9,0.0011]
[1772840264738,2.38719957,1982.5,1981.9,0.0011]
[1772840266145,1.26205637,1982.5,1981.9,0.0011]
[1772840266354,1.1251432,1982.4,1981.9,0.0011]
[1772840268562,2.38629354,1982.4,1981.9,0.0011]
[1772840270668,1.1251432,1982.3,1981.9,0.0011]
[1772840271168,1.1261432,1982.5,1981.9,0.0011]
[1772840274389,2.38720792,1982.5,1981.9,0.0011]
[1772840275272,1.1251432,1982.4,1981.9,0.0011]
[1772840276717,1.1251432,1982.4,1982.0,0.0011]
[1772840277006,1.1261432,1982.4,1982.0,0.0011]
[1772840277168,0.001,1982.4,1982.0,0.0011]
[1772840277711,1.1261432,1982.4,1982.0,0.0011]
[1772840279402,0.93690309,1982.5,1982.1,0.89047457]
[1772840279893,0.001,1982.5,1982.1,0.89047457]
[1772840281000,0.001,1982.6,1982.2,0.88695076]
[1772840281517,0.001,1982.6,1982.4,0.88695076]
[1772840283491,0.001,1982.6,1982.5,1.26103404]
[1772840284123,0.001,1982.6,1982.5,2.143093]
[1772840287409,0.95064251,1983.0,1982.4,0.87853324]
[1772840287609,0.95064251,1983.0,1982.5,1.26100707]
[1772840288008,0.95064251,1983.0,1982.3,1.26111386]
[1772840288232,0.95064251,1983.0,1982.3,3.66449915]
[1772840289912,0.95064251,1983.0,1982.4,0.0011]
[1772840290120,0.95064251,1982.8,1982.4,0.0011]
[1772840291020,0.95064251,1982.8,1982.4,0.8751346]
[1772840292341,0.95064251,1982.8,1982.5,2.13397325]
[1772840293639,0.95064251,1982.8,1982.5,0.87293921]
[1772840295345,0.95064251,1982.8,1982.5,2.13396372]
[1772840296141,0.95064251,1982.8,1982.5,0.87293921]
[1772840299448,0.95064251,1982.8,1982.5,2.13396924]
[1772840302945,0.95064251,1982.8,1982.5,2.13506924]
[1772840303256,0.001,1982.7,1982.5,2.13506924]
[1772840311909,0.001,1982.7,1982.5,0.87403921]
[1772840312609,0.001,1982.7,1982.5,2.13506656]
[1772840312917,0.95803531,1982.7,1982.5,0.0011]
[1772840314207,0.95803531,1982.7,1982.5,1.26213328]
[1772840316399,0.95803531,1982.7,1982.6,0.0011]
[1772840323506,0.001,1982.7,1982.6,0.0011]
[1772840325828,0.95803531,1982.7,1982.6,0.0011]
[1772840326017,0.95803531,1982.7,1982.5,0.0011]
[1772840328358,1.26193361,1982.7,1982.5,0.0011]
[1772840328855,0.95703531,1982.6,1982.5,0.0011]
[1772840329245,0.95803531,1982.6,1982.5,0.0011]
[1772840329451,0.95803531,1982.6,1982.4,0.0011]
[1772840331743,2.21806935,1982.5,1982.4,0.0011]
[1772840343476,0.001,1982.6,1982.4,0.83140768]
[1772840343861,1.26197142,1982.6,1982.4,0.83140768]
[1772840345152,0.94561977,1982.5,1982.4,0.0011]
[1772840345476,2.20667827,1982.5,1982.3,0.0011]
[1772840347183,0.94561977,1982.5,1982.3,0.0011]
[1772840347782,2.2066587,1982.5,1982.3,0.0011]
[1772840350092,0.94561977,1982.5,1982.3,0.0011]
[1772840350494,2.20665754,1982.5,1982.3,0.0011]
[1772840351195,0.94561977,1982.5,1982.3,0.0011]
[1772840352385,0.94561977,1982.5,1982.4,0.0011]
[1772840352786,1.26201541,1982.6,1982.4,0.0011]
[1772840353166,1.26201541,1982.6,1982.4,0.82703298]
[1772840357599,0.001,1982.6,1982.4,0.82703298]
[1772840359494,0.001,1982.6,1982.4,0.0011]
[1772840360178,0.94661977,1982.6,1982.4,0.0011]
[1772840362904,1.26103404,1982.5,1982.4,0.0011]
[1772840363607,0.001,1982.6,1982.4,0.82212893]
[1772840364099,1.26197196,1982.6,1982.4,0.82212893]
[1772840364311,1.26197196,1982.6,1982.5,0.0011]
[1772840364485,0.001,1982.6,1982.5,0.0011]
[1772840364686,0.001,1982.6,1982.5,0.82121501]
[1772840365695,0.001,1982.6,1982.5,0.0011]
[1772840373231,0.001,1982.6,1982.5,0.81732629]
[1772840380844,0.001,1982.6,1982.5,0.0011]
[1772840387490,0.001,1982.6,1982.5,0.81203674]
[1772840397095,0.001,1982.6,1982.5,2.07307078]
[1772840397264,0.001,1982.6,1982.5,0.81203674]
[1772840397465,0.001,1982.6,1982.5,2.07307078]
[1772840402825,0.001,1982.6,1982.5,0.81203674]
[1772840403015,0.001,1982.6,1982.5,0.0011]
[1772840403321,0.88445159,1982.6,1982.5,0.0011]
[1772840403818,0.88445159,1982.6,1982.4,0.0011]
[1772840404928,0.88345159,1982.5,1982.4,0.0011]
[1772840406925,2.14448563,1982.5,1982.4,0.0011]
[1772840407128,0.88345159,1982.4,1982.2,0.0011]
[1772840410708,0.88345159,1982.3,1982.2,0.0011]
[1772840413330,0.88345159,1982.2,1981.8,0.67574041]
[1772840416115,0.88345159,1982.0,1981.8,0.67574041]
[1772840418817,2.1448674,1981.9,1981.8,0.29246376]
[1772840419122,0.88345159,1981.8,1981.5,1.26166348]
[1772840419322,0.88345159,1981.8,1981.5,1.26386348]
[1772840419521,0.88345159,1981.8,1981.5,0.0022]
[1772840419929,0.88345159,1981.8,1981.5,1.26382197]
[1772840420341,0.88345159,1981.8,1981.5,2.19150473]
[1772840420558,1.26132294,1982.1,1981.5,2.19150473]
[1772840420745,0.88345159,1982.0,1981.6,0.92988276]
[1772840421043,0.88345159,1982.2,1981.7,0.92988276]
[1772840421214,0.88345159,1982.2,1981.7,0.92768276]
[1772840422844,0.88345159,1982.2,1981.8,2.18916222]
[1772840423045,0.001,1981.9,1981.8,2.18916222]
[1772840424127,0.001,1981.9,1981.8,2.19136222]
[1772840424462,0.88345159,1982.4,1981.9,0.92768276]
[1772840424647,0.88345159,1982.4,1981.9,0.92988276]
[1772840424848,0.88345159,1982.3,1982.0,1.26135216]
[1772840425161,0.88345159,1982.3,1981.9,2.19126978]
[1772840426167,0.88345159,1982.3,1982.0,0.92768276]
[1772840426550,0.88345159,1982.3,1981.9,1.26358702]
[1772840426749,0.88345159,1982.3,1982.0,0.0022]
[1772840428962,0.001,1982.5,1982.2,0.92768276]
[1772840429169,0.88445159,1982.5,1982.2,0.92768276]
[1772840429351,0.88445159,1982.5,1982.2,0.92988276]
[1772840429548,0.88445159,1982.5,1982.3,0.0022]
[1772840435795,0.001,1982.4,1982.3,0.0022]
[1772840438198,0.001,1982.4,1982.2,2.18888286]
[1772840439097,0.001,1982.4,1982.1,5.04512518]
[1772840439098,0.93684065,1982.4,1982.1,0.90110763]
[1772840441397,0.93684065,1982.4,1982.1,2.16235288]
[1772840442901,0.93584065,1982.5,1982.2,0.90330763]
[1772840444204,2.19689462,1982.5,1982.2,0.90330763]
[1772840444384,0.93584065,1982.4,1982.2,0.0022]
[1772840448106,0.93584065,1982.4,1982.3,0.0022]
[1772840448309,0.93584065,1982.4,1982.2,0.0022]
[1772840449095,0.93684065,1982.4,1982.2,0.0022]
[1772840452132,0.93684065,1982.4,1982.1,2.1623653]
[1772840452422,0.93684065,1982.4,1982.2,0.0022]
[1772840455013,0.001,1982.4,1982.2,0.90330763]
[1772840457220,0.001,1982.4,1982.3,0.0022]
[1772840459097,0.001,1982.4,1982.3,0.91294447]
[1772840459320,0.001,1982.6,1982.4,0.91074447]
[1772840459521,0.001,1982.6,1982.4,0.91294447]
[1772840461413,0.001,1982.6,1982.4,2.1740331]
[1772840463314,0.001,1982.6,1982.5,0.0022]
[1772840466020,0.86679751,1982.6,1982.3,0.0011]
[1772840469669,1.26103404,1982.5,1982.3,0.0011]
[1772840469872,0.86579751,1982.4,1982.3,0.0011]
[1772840471673,2.12778118,1982.6,1982.3,0.0011]
[1772840471883,2.12777295,1982.6,1982.3,0.0011]
[1772840474481,2.12777295,1982.6,1982.4,0.0011]
[1772840474681,0.001,1982.5,1982.4,0.0011]
[1772840478498,0.86679751,1982.5,1982.4,0.0011]
[1772840485306,1.26203404,1982.5,1980.6,14.84252097]
[1772840485603,1.26203404,1982.5,1981.4,0.89064058]
[1772840485604,2.12702241,1982.2,1981.4,0.89064058]
[1772840485780,3.84974517,1982.1,1981.4,0.89064058]
[1772840485983,2.98394766,1982.0,1981.4,0.89064058]
[1772840486184,0.86579751,1982.1,1981.4,0.89064058]
[1772840487983,2.12714967,1982.0,1981.6,0.89064058]
[1772840488386,0.86579751,1981.9,1981.6,0.89064058]
[1772840489401,2.12714967,1982.0,1981.6,0.89064058]
[1772840489711,0.86579751,1982.0,1981.6,0.89064058]
[1772840490413,0.86579751,1982.1,1981.8,0.89064058]
[1772840492889,2.12363557,1982.3,1981.9,0.89867511]
[1772840493811,0.86243679,1982.2,1981.9,0.89867511]
[1772840496504,2.12368199,1982.2,1981.9,0.89867511]
[1772840498712,0.86243679,1982.2,1981.9,0.89867511]
[1772840498913,2.12366849,1982.2,1981.9,0.89867511]
[1772840499621,0.001,1982.1,1981.9,0.89867511]
[1772840507236,0.001,1982.1,1982.0,0.89867511]
[1772840508238,0.001,1982.1,1981.9,0.89867511]
[1772840511130,0.001,1982.1,1981.9,2.16008011]
[1772840511756,0.001,1982.0,1981.9,0.89867511]
[1772840512049,0.001,1982.0,1981.9,2.16009092]
[1772840512744,0.001,1982.0,1981.9,0.89867511]
[1772840521222,0.001,1982.0,1981.8,1.26255378]
[1772840523167,0.001,1982.0,1981.8,2.13327463]
[1772840526368,0.001,1982.0,1981.8,0.87182085]
[1772840526665,0.001,1982.0,1981.8,2.13329217]
[1772840534873,0.001,1981.9,1981.8,2.13329217]
[1772840536370,0.001,1981.9,1981.8,0.87182085]
[1772840536578,0.001,1981.9,1981.8,2.13330031]
[1772840536741,0.001,1981.9,1981.8,0.0011]
[1772840540183,0.001,1981.9,1981.8,0.87182085]
[1772840540482,0.001,1981.9,1981.8,0.0011]
[1772840543696,0.86932246,1981.9,1981.8,0.0011]
[1772840543868,0.86932246,1981.9,1981.8,1.5421]
[1772840545799,2.13073827,1981.9,1981.8,0.0011]
[1772840546501,0.86932246,1981.9,1981.8,0.0011]
[1772840548811,2.13073827,1981.9,1981.8,0.0011]
[1772840549029,0.86832246,1981.8,1981.7,0.0011]
[1772840550094,2.12980192,1981.8,1981.7,0.0011]
[1772840558220,0.80983461,1981.7,1981.5,0.0011]
[1772840558420,0.80983461,1981.7,1981.2,0.82770073]
[1772840558620,1.26147946,1981.8,1981.4,0.82770073]
[1772840558621,1.26151432,1981.8,1981.4,0.82770073]
[1772840558838,2.07229248,1981.9,1981.4,0.82770073]
[1772840559242,0.80983461,1981.8,1981.4,0.82770073]
[1772840560955,0.001,1981.9,1981.5,0.82770073]
[1772840560956,2.07229537,1981.9,1981.5,0.82770073]
[1772840564827,0.80983461,1981.8,1981.5,0.82770073]
[1772840565173,0.80983461,1981.8,1981.2,0.82770073]
[1772840566868,0.80983461,1981.6,1981.3,1.2617978]
[1772840567861,0.80983461,1981.6,1981.2,2.08951589]
[1772840568572,2.07135625,1981.8,1981.3,0.82770073]
[1772840569272,2.07135625,1981.8,1981.3,1.26175588]
[1772840569446,2.07135625,1981.8,1981.4,0.82770073]
[1772840569765,0.001,1981.7,1981.4,0.82880073]
[1772840571254,0.81083461,1981.7,1981.4,0.0011]
[1772840571434,2.07144139,1981.6,1981.4,0.0011]
[1772840571635,0.80983461,1981.5,1981.4,0.0011]
[1772840573731,2.07150506,1981.5,1981.4,0.0011]
[1772840573974,0.80983461,1981.5,1981.4,0.0011]
[1772840574272,2.07150506,1981.5,1981.4,0.0011]
[1772840575305,0.80983461,1981.4,1981.3,0.0011]
[1772840575798,0.80983461,1981.5,1981.3,0.0011]
[1772840578781,2.07155306,1981.5,1981.3,0.0011]
[1772840578984,0.83444921,1981.4,1981.3,0.0011]
[1772840581204,2.09618333,1981.4,1981.3,0.0011]
[1772840588211,2.09618333,1981.4,1981.1,0.0011]
[1772840588212,0.85705668,1981.3,1980.1,0.03159975]
[1772840588510,0.85705668,1981.1,1980.1,0.03159975]
[1772840589010,1.37242235,1981.0,1980.1,0.03159975]
[1772840589381,2.22947903,1981.0,1980.3,0.03229027]
[1772840589716,2.22947903,1981.0,1980.4,0.03229027]
[1772840591628,0.85705668,1980.9,1980.5,1.26230749]
[1772840591824,0.85705668,1980.9,1980.4,5.04928673]
[1772840591825,0.85705668,1980.9,1980.4,0.03290353]
[1772840592121,1.37242235,1981.0,1980.4,0.03290353]
[1772840593726,1.37242235,1981.0,1980.6,0.03283483]
[1772840595634,1.37242235,1981.0,1980.7,1.29495654]
[1772840595931,1.37242235,1981.0,1980.8,0.03277651]
[1772840599213,1.37242235,1981.0,1980.7,0.03269074]
[1772840599418,3.49147994,1981.0,1980.7,0.03269074]
[1772840600741,3.49147044,1981.0,1980.7,0.03269074]
[1772840601043,1.37242235,1981.0,1980.8,0.03262868]
[1772840601331,2.11985553,1981.3,1980.8,0.03262868]
[1772840601526,0.85705668,1981.2,1980.8,0.03262868]
[1772840602617,2.11895068,1981.2,1980.8,1.29473887]
[1772840605745,2.1189206,1981.2,1980.8,1.29473887]
[1772840607339,2.1189206,1981.2,1980.7,5.04859575]
[1772840607340,0.85705668,1981.1,1980.7,0.03247104]
[1772840607712,0.85805668,1981.1,1980.7,0.03247104]
[1772840610441,0.85705668,1981.0,1980.5,0.03349035]